[Event "Late-Titled-Tuesday-Blitz-April-02-2024"]
[Site "Chess.com"]
[Date "2024.04.02"]
[Round "4"]
[White "zajka-molotok"]
[Black "Godzillator"]
[Result "0-1"]
[WhiteElo "2533"]
[BlackElo "2388"]
[TimeControl "180+1"]
[EndTime "14:38:21 PDT"]
[Termination "Godzillator won by resignation"]

1. e4 {[%clk 0:03:00.9]} 1... d5 {[%clk 0:02:59.6]} 2. exd5 {[%clk 0:02:51.4]}
2... Qxd5 {[%clk 0:03:00.5]} 3. Nc3 {[%clk 0:02:51]} 3... Qd8 {[%clk 0:02:58.9]}
4. d4 {[%clk 0:02:50.3]} 4... c6 {[%clk 0:02:59]} 5. Nf3 {[%clk 0:02:47]} 5...
Nf6 {[%clk 0:02:58.6]} 6. Ne5 {[%clk 0:02:38.1]} 6... Be6 {[%clk 0:02:55.7]} 7.
f4 {[%clk 0:02:33.7]} 7... g6 {[%clk 0:02:55.8]} 8. Be3 {[%clk 0:02:29.7]} 8...
Nd5 {[%clk 0:02:51]} 9. Nxd5 {[%clk 0:02:28.8]} 9... Bxd5 {[%clk 0:02:51.2]} 10.
Qd2 {[%clk 0:02:18.4]} 10... Bg7 {[%clk 0:02:40.7]} 11. Bd3 {[%clk 0:02:15.9]}
11... Nd7 {[%clk 0:02:34.2]} 12. c4 {[%clk 0:02:11.6]} 12... Nxe5 {[%clk
0:01:42.8]} 13. fxe5 {[%clk 0:02:01.9]} 13... Be6 {[%clk 0:01:39.9]} 14. O-O
{[%clk 0:01:59.7]} 14... O-O {[%clk 0:01:38.4]} 15. Rad1 {[%clk 0:01:57.3]}
15... Bg4 {[%clk 0:01:25]} 16. Be2 {[%clk 0:01:54.1]} 16... Bxe2 {[%clk
0:01:23.9]} 17. Qxe2 {[%clk 0:01:55]} 17... e6 {[%clk 0:01:20.8]} 18. Rf3 {[%clk
0:01:40.4]} 18... Qa5 {[%clk 0:01:17]} 19. b3 {[%clk 0:01:39.1]} 19... Rad8
{[%clk 0:01:12.9]} 20. Rdf1 {[%clk 0:01:35.9]} 20... c5 {[%clk 0:01:11.9]} 21.
dxc5 {[%clk 0:01:26.1]} 21... Bxe5 {[%clk 0:01:11.9]} 22. Kh1 {[%clk 0:01:24.1]}
22... Bg7 {[%clk 0:01:08.2]} 23. Qf2 {[%clk 0:01:22.7]} 23... f5 {[%clk
0:01:04.9]} 24. Qh4 {[%clk 0:01:17.3]} 24... Rd7 {[%clk 0:00:58.7]} 25. Rh3
{[%clk 0:01:13.1]} 25... Bf6 {[%clk 0:00:54.9]} 26. Qf2 {[%clk 0:01:11.4]} 26...
Rfd8 {[%clk 0:00:49.4]} 27. c6 {[%clk 0:01:03.9]} 27... bxc6 {[%clk 0:00:48.9]}
28. Bxa7 {[%clk 0:01:03.8]} 28... Qd2 {[%clk 0:00:45.1]} 29. Rf3 {[%clk
0:00:58.8]} 29... Qxf2 {[%clk 0:00:44.2]} 30. R3xf2 {[%clk 0:00:59.7]} 30...
Rxa7 {[%clk 0:00:43.8]} 31. Re2 {[%clk 0:00:57.9]} 31... e5 {[%clk 0:00:43.3]}
32. g4 {[%clk 0:00:57.5]} 32... f4 {[%clk 0:00:42.5]} 33. g5 {[%clk 0:00:57.5]}
33... Bg7 {[%clk 0:00:41.6]} 34. h4 {[%clk 0:00:55.2]} 34... c5 {[%clk
0:00:40.7]} 35. Kg2 {[%clk 0:00:52]} 35... Rad7 {[%clk 0:00:40.3]} 36. Kf3
{[%clk 0:00:51.2]} 36... Rd3+ {[%clk 0:00:34]} 37. Kf2 {[%clk 0:00:51.1]} 37...
Rd2 {[%clk 0:00:30.7]} 38. Re1 {[%clk 0:00:49.2]} 38... e4 {[%clk 0:00:27.7]}
39. a4 {[%clk 0:00:45.4]} 39... f3 {[%clk 0:00:25.3]} 40. Rxd2 {[%clk
0:00:44.1]} 40... Rxd2+ {[%clk 0:00:25.1]} 41. Ke3 {[%clk 0:00:44.3]} 41... Re2+
{[%clk 0:00:23.9]} 42. Rxe2 {[%clk 0:00:43.1]} 42... fxe2 {[%clk 0:00:24.1]} 43.
Kxe2 {[%clk 0:00:42.5]} 43... Bc3 {[%clk 0:00:23.1]} 44. Ke3 {[%clk 0:00:41.2]}
44... Kf7 {[%clk 0:00:23.7]} 45. Kxe4 {[%clk 0:00:41.8]} 45... Ke6 {[%clk
0:00:24.4]} 46. Kf4 {[%clk 0:00:39.4]} 46... Bb4 {[%clk 0:00:22.1]} 47. Ke4
{[%clk 0:00:35.2]} 47... Bd2 {[%clk 0:00:21.7]} 48. Kd3 {[%clk 0:00:33.3]} 48...
Be1 {[%clk 0:00:21.9]} 49. Ke4 {[%clk 0:00:32.9]} 49... Bxh4 {[%clk 0:00:21.9]}
50. a5 {[%clk 0:00:31.7]} 50... Kd6 {[%clk 0:00:22]} 51. a6 {[%clk 0:00:24.3]}
51... Kc6 {[%clk 0:00:22.2]} 52. a7 {[%clk 0:00:24.8]} 52... Kb7 {[%clk
0:00:22.6]} 53. Kd5 {[%clk 0:00:25.4]} 53... Bxg5 {[%clk 0:00:21.9]} 54. Kxc5
{[%clk 0:00:26]} 54... Be3+ {[%clk 0:00:21.9]} 55. Kd5 {[%clk 0:00:24.9]} 55...
h5 {[%clk 0:00:22.2]} 56. Ke4 {[%clk 0:00:24.8]} 56... Bxa7 {[%clk 0:00:21.4]}
57. Kf4 {[%clk 0:00:24.4]} 57... Bd4 {[%clk 0:00:20.5]} 58. Kg5 {[%clk
0:00:24.3]} 58... Be3+ {[%clk 0:00:20.8]} 59. Kh4 {[%clk 0:00:22.5]} 59... Bd2
{[%clk 0:00:21.1]} 60. Kg3 {[%clk 0:00:20.4]} 60... g5 {[%clk 0:00:21.6]} 61.
Kh3 {[%clk 0:00:20.5]} 61... Kb6 {[%clk 0:00:21.7]} 62. Kg3 {[%clk 0:00:20.7]}
62... Kc5 {[%clk 0:00:22.1]} 63. Kh3 {[%clk 0:00:21.1]} 63... Kb4 {[%clk
0:00:22.5]} 64. Kg3 {[%clk 0:00:21.7]} 64... Be3 {[%clk 0:00:23]} 65. Kf3 {[%clk
0:00:21.4]} 65... Bd4 {[%clk 0:00:23.2]} 66. Ke4 {[%clk 0:00:21.7]} 66... Ba7
{[%clk 0:00:22.5]} 67. Kf5 {[%clk 0:00:21.5]} 67... g4 {[%clk 0:00:23]} 68. Kf4
{[%clk 0:00:21.9]} 68... Kxb3 {[%clk 0:00:22.8]} 69. Kg3 {[%clk 0:00:22.8]}
69... Kxc4 {[%clk 0:00:23.2]} 70. Kh4 {[%clk 0:00:22.9]} 70... Kd3 {[%clk
0:00:24.1]} 71. Kg3 {[%clk 0:00:23.2]} 71... Ke2 {[%clk 0:00:25]} 72. Kh4 {[%clk
0:00:24.1]} 72... Kf3 {[%clk 0:00:24.7]} 0-1

[Event "Late-Titled-Tuesday-Blitz-April-02-2024"]
[Site "Chess.com"]
[Date "2024.04.02"]
[Round "4"]
[White "merinasian"]
[Black "Gabcur"]
[Result "0-1"]
[WhiteElo "2488"]
[BlackElo "2338"]
[TimeControl "180+1"]
[EndTime "14:38:29 PDT"]
[Termination "Gabcur won by resignation"]

1. d4 {[%clk 0:02:56.9]} 1... d5 {[%clk 0:02:58.4]} 2. Nf3 {[%clk 0:02:56.7]}
2... Nf6 {[%clk 0:02:57.7]} 3. c4 {[%clk 0:02:55.8]} 3... c6 {[%clk 0:02:57.2]}
4. e3 {[%clk 0:02:55.8]} 4... e6 {[%clk 0:02:56.7]} 5. Nbd2 {[%clk 0:02:55.3]}
5... c5 {[%clk 0:02:56.1]} 6. Bd3 {[%clk 0:02:54.3]} 6... Nc6 {[%clk 0:02:55.3]}
7. O-O {[%clk 0:02:53.9]} 7... cxd4 {[%clk 0:02:47.5]} 8. exd4 {[%clk
0:02:53.5]} 8... dxc4 {[%clk 0:02:46.5]} 9. Nxc4 {[%clk 0:02:53.4]} 9... Be7
{[%clk 0:02:45.7]} 10. Nce5 {[%clk 0:02:34.3]} 10... O-O {[%clk 0:02:40.3]} 11.
Nxc6 {[%clk 0:02:33.1]} 11... bxc6 {[%clk 0:02:37.7]} 12. Bf4 {[%clk 0:02:20.9]}
12... Qb6 {[%clk 0:02:27]} 13. Qc2 {[%clk 0:02:13.6]} 13... Ba6 {[%clk 0:02:14]}
14. Bxa6 {[%clk 0:02:03]} 14... Qxa6 {[%clk 0:02:11.4]} 15. Ne5 {[%clk
0:02:03.5]} 15... Rac8 {[%clk 0:01:56.6]} 16. Nd3 {[%clk 0:01:47]} 16... Nd5
{[%clk 0:01:45.8]} 17. Bg3 {[%clk 0:01:40.7]} 17... Nb4 {[%clk 0:01:31.1]} 18.
Nxb4 {[%clk 0:01:34.3]} 18... Bxb4 {[%clk 0:01:32]} 19. a3 {[%clk 0:01:33.3]}
19... Be7 {[%clk 0:01:28.6]} 20. b4 {[%clk 0:01:25.6]} 20... Rfd8 {[%clk
0:01:11.2]} 21. Rfd1 {[%clk 0:01:24.9]} 21... Qb5 {[%clk 0:01:05.5]} 22. Be5
{[%clk 0:01:17.8]} 22... a5 {[%clk 0:00:58.9]} 23. bxa5 {[%clk 0:01:15.7]} 23...
Qxa5 {[%clk 0:00:58.4]} 24. a4 {[%clk 0:01:15.6]} 24... c5 {[%clk 0:00:52.5]}
25. dxc5 {[%clk 0:00:52.6]} 25... Rxd1+ {[%clk 0:00:36.2]} 26. Rxd1 {[%clk
0:00:45.4]} 26... Rxc5 {[%clk 0:00:26.8]} 27. Qb2 {[%clk 0:00:19.9]} 27... Rxe5
{[%clk 0:00:22.8]} 28. Qb8+ {[%clk 0:00:16]} 28... Bf8 {[%clk 0:00:21.8]} 29. g3
{[%clk 0:00:15.8]} 29... Rd5 {[%clk 0:00:18.2]} 30. Rc1 {[%clk 0:00:14.4]} 30...
Rd8 {[%clk 0:00:17.6]} 31. Qb3 {[%clk 0:00:13.5]} 31... Ra8 {[%clk 0:00:17.4]}
32. Rc4 {[%clk 0:00:13]} 32... g6 {[%clk 0:00:17.4]} 33. h4 {[%clk 0:00:12.5]}
33... h5 {[%clk 0:00:17.1]} 34. Qc2 {[%clk 0:00:11]} 34... Qd5 {[%clk
0:00:14.8]} 35. Kh2 {[%clk 0:00:10.5]} 35... Bg7 {[%clk 0:00:11.7]} 36. Rf4
{[%clk 0:00:10.2]} 36... Rd8 {[%clk 0:00:09.3]} 37. Qc7 {[%clk 0:00:09.9]} 37...
Qd7 {[%clk 0:00:08.7]} 38. Qc4 {[%clk 0:00:09.7]} 38... e5 {[%clk 0:00:07.3]}
39. Rf3 {[%clk 0:00:09]} 39... Re8 {[%clk 0:00:06.7]} 40. a5 {[%clk 0:00:08.9]}
40... Qe6 {[%clk 0:00:05.5]} 41. Qb5 {[%clk 0:00:07.5]} 41... e4 {[%clk
0:00:05.5]} 42. Re3 {[%clk 0:00:06.4]} 42... Bd4 {[%clk 0:00:05.5]} 43. Re2
{[%clk 0:00:06.8]} 43... e3 {[%clk 0:00:05.9]} 44. fxe3 {[%clk 0:00:04.9]} 44...
Bxe3 {[%clk 0:00:05.9]} 45. a6 {[%clk 0:00:04.8]} 45... Ra8 {[%clk 0:00:05.2]}
46. Qb7 {[%clk 0:00:04.1]} 46... Qxa6 {[%clk 0:00:03.2]} 47. Qxa8+ {[%clk
0:00:03.9]} 47... Qxa8 {[%clk 0:00:03]} 48. Rxe3 {[%clk 0:00:03.7]} 48... Kg7
{[%clk 0:00:03.9]} 49. Kh3 {[%clk 0:00:03.6]} 49... Qa2 {[%clk 0:00:04.1]} 50.
Rf3 {[%clk 0:00:03.9]} 50... Qa6 {[%clk 0:00:04.3]} 51. Rf4 {[%clk 0:00:04.3]}
51... Qe6+ {[%clk 0:00:04.7]} 52. Kg2 {[%clk 0:00:03.7]} 52... Qe2+ {[%clk
0:00:05.2]} 53. Rf2 {[%clk 0:00:04.1]} 53... Qd1 {[%clk 0:00:05.6]} 54. Rf1
{[%clk 0:00:04.3]} 54... Qd5+ {[%clk 0:00:06.2]} 55. Rf3 {[%clk 0:00:04.6]}
55... Qd4 {[%clk 0:00:06.7]} 56. Rf2 {[%clk 0:00:04.8]} 56... f6 {[%clk
0:00:07.2]} 57. Kh2 {[%clk 0:00:05.7]} 57... Qe4 {[%clk 0:00:07.4]} 58. Re2
{[%clk 0:00:05.8]} 58... Qd3 {[%clk 0:00:07.5]} 59. Re7+ {[%clk 0:00:05.6]}
59... Kf8 {[%clk 0:00:07.7]} 60. Rd7 {[%clk 0:00:05.7]} 60... Qxd7 {[%clk
0:00:07.2]} 0-1

[Event "Late-Titled-Tuesday-Blitz-April-02-2024"]
[Site "Chess.com"]
[Date "2024.04.02"]
[Round "4"]
[White "Sargsyan_Shant"]
[Black "RealPerangel"]
[Result "1/2-1/2"]
[WhiteElo "2949"]
[BlackElo "2558"]
[TimeControl "180+1"]
[EndTime "14:38:30 PDT"]
[Termination "Game drawn by repetition"]

1. c4 {[%clk 0:02:59.8]} 1... c5 {[%clk 0:01:49.9]} 2. g3 {[%clk 0:03:00]} 2...
g6 {[%clk 0:01:49.1]} 3. Bg2 {[%clk 0:02:59.5]} 3... Nc6 {[%clk 0:01:49.7]} 4.
Nc3 {[%clk 0:03:00.1]} 4... Bg7 {[%clk 0:01:50.3]} 5. d3 {[%clk 0:03:00.6]} 5...
e6 {[%clk 0:01:50.9]} 6. Qd2 {[%clk 0:03:00.7]} 6... Nge7 {[%clk 0:01:51.2]} 7.
h4 {[%clk 0:03:01.4]} 7... h5 {[%clk 0:01:49.3]} 8. Nh3 {[%clk 0:03:01.6]} 8...
d6 {[%clk 0:01:49.3]} 9. Ng5 {[%clk 0:03:02.2]} 9... Nf5 {[%clk 0:01:47.6]} 10.
b3 {[%clk 0:03:01.9]} 10... O-O {[%clk 0:01:45]} 11. Bb2 {[%clk 0:03:02.2]}
11... Qe7 {[%clk 0:01:41.8]} 12. O-O {[%clk 0:03:01]} 12... Bd7 {[%clk
0:01:40.1]} 13. e3 {[%clk 0:02:55.6]} 13... Rab8 {[%clk 0:01:37.4]} 14. Nce4
{[%clk 0:02:51.4]} 14... Ne5 {[%clk 0:01:37.2]} 15. d4 {[%clk 0:02:48.4]} 15...
cxd4 {[%clk 0:01:35.7]} 16. exd4 {[%clk 0:02:49.3]} 16... Ng4 {[%clk 0:01:35.5]}
17. Rfe1 {[%clk 0:02:48.3]} 17... Bh6 {[%clk 0:01:30.5]} 18. Qb4 {[%clk
0:02:39.5]} 18... b6 {[%clk 0:01:26.7]} 19. Rad1 {[%clk 0:02:34.3]} 19... Rfd8
{[%clk 0:01:21.9]} 20. Qc3 {[%clk 0:02:11.5]} 20... Bg7 {[%clk 0:01:20.3]} 21.
Qd2 {[%clk 0:02:11]} 21... Bh6 {[%clk 0:01:19.9]} 22. Qc3 {[%clk 0:02:06.3]}
22... Bg7 {[%clk 0:01:19.6]} 23. Qc1 {[%clk 0:02:06.7]} 23... Bh6 {[%clk
0:01:19.2]} 24. Qa1 {[%clk 0:02:07]} 24... Bc8 {[%clk 0:01:15.6]} 25. Nc3 {[%clk
0:01:42.5]} 25... Bxg5 {[%clk 0:01:12]} 26. hxg5 {[%clk 0:01:43.4]} 26... Qxg5
{[%clk 0:01:12]} 27. Ne4 {[%clk 0:01:36.8]} 27... Qe7 {[%clk 0:01:09.5]} 28. Bf3
{[%clk 0:01:33.4]} 28... Nf6 {[%clk 0:00:56.7]} 29. Nc3 {[%clk 0:01:32.5]} 29...
Nh7 {[%clk 0:00:54]} 30. Bg2 {[%clk 0:01:30.2]} 30... Bb7 {[%clk 0:00:53.4]} 31.
d5 {[%clk 0:01:29]} 31... e5 {[%clk 0:00:53.5]} 32. Qc1 {[%clk 0:01:24.4]} 32...
Re8 {[%clk 0:00:50.5]} 33. Ne4 {[%clk 0:01:24.7]} 33... f6 {[%clk 0:00:48.1]}
34. Bh3 {[%clk 0:01:20]} 34... Bc8 {[%clk 0:00:48.1]} 35. Kh2 {[%clk 0:01:20.4]}
35... Rd8 {[%clk 0:00:45.5]} 36. Ba3 {[%clk 0:01:20.7]} 36... a5 {[%clk
0:00:43.5]} 37. f4 {[%clk 0:01:14.2]} 37... Ng7 {[%clk 0:00:39.4]} 38. fxe5
{[%clk 0:01:07.9]} 38... fxe5 {[%clk 0:00:38.2]} 39. Bxc8 {[%clk 0:01:04.9]}
39... Rbxc8 {[%clk 0:00:39]} 40. Qh6 {[%clk 0:01:04.3]} 40... Qf7 {[%clk
0:00:32.6]} 41. Qe3 {[%clk 0:00:46]} 41... Nf5 {[%clk 0:00:32.4]} 42. Qxb6
{[%clk 0:00:46.1]} 42... Nf6 {[%clk 0:00:30.5]} 43. Ng5 {[%clk 0:00:39]} 43...
Ng4+ {[%clk 0:00:30.5]} 44. Kg2 {[%clk 0:00:39.8]} 44... Qf6 {[%clk 0:00:29.5]}
45. Ne4 {[%clk 0:00:39.3]} 45... Qf7 {[%clk 0:00:27.9]} 46. Bc1 {[%clk
0:00:39.5]} 46... a4 {[%clk 0:00:25.4]} 47. Bg5 {[%clk 0:00:39.3]} 47... Rd7
{[%clk 0:00:25.3]} 48. Rf1 {[%clk 0:00:33.4]} 48... axb3 {[%clk 0:00:25.3]} 49.
axb3 {[%clk 0:00:34.3]} 49... Ra8 {[%clk 0:00:23.5]} 50. Ra1 {[%clk 0:00:32]}
50... Rxa1 {[%clk 0:00:19]} 51. Rxa1 {[%clk 0:00:32.9]} 51... Kg7 {[%clk
0:00:19.5]} 52. Rf1 {[%clk 0:00:18.7]} 52... Rb7 {[%clk 0:00:19.5]} 53. Qd8
{[%clk 0:00:14.1]} 53... Rxb3 {[%clk 0:00:16.3]} 54. Kh3 {[%clk 0:00:10.2]}
54... Rb2 {[%clk 0:00:12.1]} 55. Rh1 {[%clk 0:00:06.1]} 55... Rb3 {[%clk
0:00:11.4]} 56. Rf1 {[%clk 0:00:06.1]} 56... Rb2 {[%clk 0:00:11.5]} 57. Rh1
{[%clk 0:00:06.2]} 57... Rb3 {[%clk 0:00:11.7]} 58. Rf1 {[%clk 0:00:06.8]}
1/2-1/2

[Event "Late-Titled-Tuesday-Blitz-April-02-2024"]
[Site "Chess.com"]
[Date "2024.04.02"]
[Round "4"]
[White "Tugrik1969"]
[Black "RodokininEV"]
[Result "0-1"]
[WhiteElo "2556"]
[BlackElo "2703"]
[TimeControl "180+1"]
[EndTime "14:38:30 PDT"]
[Termination "RodokininEV won on time"]

1. d4 {[%clk 0:03:00.9]} 1... Nf6 {[%clk 0:02:54.4]} 2. c4 {[%clk 0:03:00.4]}
2... e6 {[%clk 0:02:54.3]} 3. Nf3 {[%clk 0:02:59.8]} 3... Bb4+ {[%clk
0:02:53.8]} 4. Bd2 {[%clk 0:02:59.5]} 4... Be7 {[%clk 0:02:50.8]} 5. g3 {[%clk
0:02:55.5]} 5... d5 {[%clk 0:02:51.1]} 6. Bg2 {[%clk 0:02:56]} 6... O-O {[%clk
0:02:51.8]} 7. O-O {[%clk 0:02:55.6]} 7... c6 {[%clk 0:02:52.3]} 8. Nc3 {[%clk
0:02:54.1]} 8... Ne4 {[%clk 0:02:52.6]} 9. Qc2 {[%clk 0:02:48.3]} 9... f5 {[%clk
0:02:52.4]} 10. Bf4 {[%clk 0:02:15.6]} 10... Nd7 {[%clk 0:02:51.9]} 11. Ne5
{[%clk 0:02:08.8]} 11... Ndf6 {[%clk 0:02:48.7]} 12. f3 {[%clk 0:01:57.1]} 12...
Nd6 {[%clk 0:02:43.5]} 13. c5 {[%clk 0:01:54.3]} 13... Nde8 {[%clk 0:02:31.9]}
14. Rad1 {[%clk 0:01:50.1]} 14... Nd7 {[%clk 0:02:29.1]} 15. Nxd7 {[%clk
0:01:46.9]} 15... Bxd7 {[%clk 0:02:29.2]} 16. e4 {[%clk 0:01:45.1]} 16... Bf6
{[%clk 0:02:26.2]} 17. exf5 {[%clk 0:01:37.4]} 17... exf5 {[%clk 0:02:27.1]} 18.
Rfe1 {[%clk 0:01:36.4]} 18... g6 {[%clk 0:02:21.2]} 19. Be5 {[%clk 0:01:36.4]}
19... Ng7 {[%clk 0:02:21]} 20. f4 {[%clk 0:01:30.4]} 20... Be6 {[%clk
0:02:12.3]} 21. Re3 {[%clk 0:01:24.2]} 21... Qd7 {[%clk 0:02:07.5]} 22. Rde1
{[%clk 0:01:24.5]} 22... Rae8 {[%clk 0:02:00.1]} 23. b4 {[%clk 0:01:23]} 23...
Re7 {[%clk 0:01:50.2]} 24. a4 {[%clk 0:01:20.3]} 24... Bxe5 {[%clk 0:01:43.9]}
25. Rxe5 {[%clk 0:01:19.6]} 25... Rfe8 {[%clk 0:01:41]} 26. R1e3 {[%clk
0:01:16.1]} 26... Nh5 {[%clk 0:01:39.1]} 27. b5 {[%clk 0:01:05.1]} 27... Nf6
{[%clk 0:01:36.8]} 28. Bf1 {[%clk 0:01:02.2]} 28... Ne4 {[%clk 0:01:32.8]} 29.
Qb3 {[%clk 0:00:57]} 29... Kf7 {[%clk 0:01:29.1]} 30. Nd1 {[%clk 0:00:49.6]}
30... Nf6 {[%clk 0:01:25.4]} 31. Nf2 {[%clk 0:00:48.4]} 31... h6 {[%clk
0:01:22.8]} 32. a5 {[%clk 0:00:42.9]} 32... Qc7 {[%clk 0:01:13.2]} 33. b6 {[%clk
0:00:33.7]} 33... axb6 {[%clk 0:01:14.1]} 34. axb6 {[%clk 0:00:33.2]} 34... Qb8
{[%clk 0:01:12]} 35. Qa3 {[%clk 0:00:32]} 35... Nd7 {[%clk 0:01:04.2]} 36. Nd3
{[%clk 0:00:29.2]} 36... Nxe5 {[%clk 0:00:56.2]} 37. Nxe5+ {[%clk 0:00:28.3]}
37... Kg7 {[%clk 0:00:56.4]} 38. Qa1 {[%clk 0:00:26.7]} 38... Bg8 {[%clk
0:00:50.1]} 39. Ra3 {[%clk 0:00:23.8]} 39... g5 {[%clk 0:00:42.1]} 40. Qc1
{[%clk 0:00:23.4]} 40... g4 {[%clk 0:00:40.9]} 41. Qa1 {[%clk 0:00:22.5]} 41...
Qc8 {[%clk 0:00:38.2]} 42. Ra7 {[%clk 0:00:21.7]} 42... Qe6 {[%clk 0:00:38.2]}
43. Ra3 {[%clk 0:00:20.2]} 43... Qf6 {[%clk 0:00:36.2]} 44. h4 {[%clk
0:00:19.2]} 44... gxh3 {[%clk 0:00:34.6]} 45. Bxh3 {[%clk 0:00:19.4]} 45... Kh8
{[%clk 0:00:34.3]} 46. Kh2 {[%clk 0:00:19.3]} 46... Be6 {[%clk 0:00:33.7]} 47.
Ra7 {[%clk 0:00:17.7]} 47... Rg7 {[%clk 0:00:33]} 48. Qd1 {[%clk 0:00:16.2]}
48... Reg8 {[%clk 0:00:30]} 49. Ra3 {[%clk 0:00:15.3]} 49... Bc8 {[%clk
0:00:24.3]} 50. Qh5 {[%clk 0:00:14.8]} 50... Be6 {[%clk 0:00:23.1]} 51. Qe2
{[%clk 0:00:13.7]} 51... Bf7 {[%clk 0:00:16.5]} 52. Qd1 {[%clk 0:00:12.5]} 52...
h5 {[%clk 0:00:15.6]} 53. Qc2 {[%clk 0:00:05.9]} 53... Bg6 {[%clk 0:00:13.1]}
54. Nf3 {[%clk 0:00:04.3]} 54... Bh7 {[%clk 0:00:10.9]} 55. Re3 {[%clk
0:00:03.5]} 55... Rxg3 {[%clk 0:00:08.4]} 56. Qf2 {[%clk 0:00:01.7]} 56... h4
{[%clk 0:00:05.8]} 0-1

[Event "Late-Titled-Tuesday-Blitz-April-02-2024"]
[Site "Chess.com"]
[Date "2024.04.02"]
[Round "4"]
[White "Shahdad2007"]
[Black "TanitoluwaAps116"]
[Result "0-1"]
[WhiteElo "2582"]
[BlackElo "2805"]
[TimeControl "180+1"]
[EndTime "14:38:37 PDT"]
[Termination "TanitoluwaAps116 won on time"]

1. Nf3 {[%clk 0:03:00.9]} 1... Nf6 {[%clk 0:02:48.7]} 2. c4 {[%clk 0:03:00.3]}
2... e6 {[%clk 0:02:48.5]} 3. g3 {[%clk 0:02:59.8]} 3... d5 {[%clk 0:02:45.4]}
4. Bg2 {[%clk 0:03:00.1]} 4... a6 {[%clk 0:02:41.8]} 5. O-O {[%clk 0:02:30.3]}
5... dxc4 {[%clk 0:02:30.3]} 6. a4 {[%clk 0:02:20.2]} 6... Nc6 {[%clk
0:02:25.6]} 7. Na3 {[%clk 0:02:09.5]} 7... Bxa3 {[%clk 0:02:01.4]} 8. Rxa3
{[%clk 0:02:08.7]} 8... O-O {[%clk 0:02:00.5]} 9. d3 {[%clk 0:02:08.3]} 9...
cxd3 {[%clk 0:01:56.8]} 10. Rxd3 {[%clk 0:02:07.5]} 10... Qe7 {[%clk 0:01:55.5]}
11. b3 {[%clk 0:02:03.1]} 11... e5 {[%clk 0:01:53.6]} 12. Bg5 {[%clk 0:01:45]}
12... h6 {[%clk 0:01:48.6]} 13. Bxf6 {[%clk 0:01:44.7]} 13... Qxf6 {[%clk
0:01:49.5]} 14. Nd2 {[%clk 0:01:43.6]} 14... Bf5 {[%clk 0:01:43.9]} 15. Rc3
{[%clk 0:01:41.8]} 15... e4 {[%clk 0:01:11.1]} 16. Qa1 {[%clk 0:01:23.4]} 16...
Nd4 {[%clk 0:01:02.2]} 17. Re1 {[%clk 0:01:23.2]} 17... Rfe8 {[%clk 0:00:50.6]}
18. e3 {[%clk 0:01:07.4]} 18... Nc6 {[%clk 0:00:42.7]} 19. Rc4 {[%clk 0:00:50]}
19... Qg6 {[%clk 0:00:28.9]} 20. Qb1 {[%clk 0:00:28.9]} 20... Rad8 {[%clk
0:00:17.5]} 21. Bxe4 {[%clk 0:00:21.7]} 21... Rxd2 {[%clk 0:00:15.2]} 22. Bxf5
{[%clk 0:00:21.4]} 22... Qf6 {[%clk 0:00:14.7]} 23. Rf4 {[%clk 0:00:20.7]} 23...
Qd6 {[%clk 0:00:06.2]} 24. Be4 {[%clk 0:00:19]} 24... Ne5 {[%clk 0:00:05.8]} 25.
Qc1 {[%clk 0:00:16.9]} 25... c6 {[%clk 0:00:05.4]} 26. Qc3 {[%clk 0:00:16]}
26... Rd8 {[%clk 0:00:05.6]} 27. h4 {[%clk 0:00:15.4]} 27... Qe6 {[%clk
0:00:05.9]} 28. Bf5 {[%clk 0:00:14.7]} 28... Qd5 {[%clk 0:00:05.2]} 29. Be4
{[%clk 0:00:13.8]} 29... Qd6 {[%clk 0:00:05.6]} 30. h5 {[%clk 0:00:12.7]} 30...
Qe6 {[%clk 0:00:04.8]} 31. Bf5 {[%clk 0:00:12.3]} 31... Qe7 {[%clk 0:00:05.2]}
32. Be4 {[%clk 0:00:12.3]} 32... Qd6 {[%clk 0:00:03]} 33. Kg2 {[%clk 0:00:11.1]}
33... b5 {[%clk 0:00:03.6]} 34. axb5 {[%clk 0:00:10.6]} 34... cxb5 {[%clk
0:00:04.3]} 35. b4 {[%clk 0:00:10.8]} 35... Qe7 {[%clk 0:00:03.2]} 36. Ra1
{[%clk 0:00:08.7]} 36... R2d6 {[%clk 0:00:02.6]} 37. Rc1 {[%clk 0:00:07.5]}
37... Nc4 {[%clk 0:00:03.1]} 38. Qe1 {[%clk 0:00:05.4]} 38... Re6 {[%clk
0:00:03.4]} 39. Bf3 {[%clk 0:00:05]} 39... Qg5 {[%clk 0:00:02.6]} 40. Rd1 {[%clk
0:00:05]} 40... Rde8 {[%clk 0:00:02.6]} 41. Rd5 {[%clk 0:00:04.9]} 41... Qe7
{[%clk 0:00:02.9]} 42. Rfd4 {[%clk 0:00:05]} 42... Kh8 {[%clk 0:00:02.9]} 43.
Rd7 {[%clk 0:00:05]} 43... Qg5 {[%clk 0:00:02.8]} 44. Rg4 {[%clk 0:00:05.2]}
44... Qf6 {[%clk 0:00:02.2]} 45. Rf4 {[%clk 0:00:05.4]} 45... Qg5 {[%clk
0:00:02.7]} 46. Rfxf7 {[%clk 0:00:06]} 46... R6e7 {[%clk 0:00:02.5]} 47. Rfxe7
{[%clk 0:00:06]} 47... Rxe7 {[%clk 0:00:03.4]} 48. Rd8+ {[%clk 0:00:06.5]} 48...
Kh7 {[%clk 0:00:03.4]} 49. Qb1+ {[%clk 0:00:07]} 49... g6 {[%clk 0:00:03.8]} 50.
hxg6+ {[%clk 0:00:06.9]} 50... Kg7 {[%clk 0:00:03.7]} 51. Qa1+ {[%clk
0:00:06.7]} 51... Ne5 {[%clk 0:00:04.3]} 52. Rd5 {[%clk 0:00:06]} 52... Qf6
{[%clk 0:00:04.3]} 53. Be4 {[%clk 0:00:05.6]} 53... h5 {[%clk 0:00:04.8]} 54. f4
{[%clk 0:00:05.8]} 54... Ng4 {[%clk 0:00:04.9]} 55. Qxf6+ {[%clk 0:00:06.2]}
55... Nxf6 {[%clk 0:00:05.8]} 56. Rd6 {[%clk 0:00:02.6]} 56... Rxe4 {[%clk
0:00:05.9]} 57. Rxa6 {[%clk 0:00:02.2]} 57... Rxb4 {[%clk 0:00:06.4]} 58. f5
{[%clk 0:00:02.4]} 58... Re4 {[%clk 0:00:04.3]} 59. Kf3 {[%clk 0:00:02.8]} 59...
Re7 {[%clk 0:00:04]} 60. Rb6 {[%clk 0:00:02.8]} 60... Rxe3+ {[%clk 0:00:04.2]}
0-1